[Event "Early-Titled-Tuesday-Blitz-February-06-2024"]
[Site "Chess.com"]
[Date "2024.02.06"]
[Round "9"]
[White "CristianS27"]
[Black "jcreyes69"]
[Result "1-0"]
[WhiteElo "2569"]
[BlackElo "2392"]
[TimeControl "180+1"]
[EndTime "9:41:25 PST"]
[Termination "CristianS27 won by checkmate"]

1. e4 {[%clk 0:02:50.8]} 1... c5 {[%clk 0:02:52.3]} 2. Nf3 {[%clk 0:02:50.7]}
2... e6 {[%clk 0:02:43.8]} 3. d4 {[%clk 0:02:51.2]} 3... cxd4 {[%clk 0:02:44.6]}
4. Nxd4 {[%clk 0:02:52.1]} 4... Nc6 {[%clk 0:02:44.8]} 5. Be2 {[%clk 0:02:52.4]}
5... Qc7 {[%clk 0:02:40.3]} 6. O-O {[%clk 0:02:52.4]} 6... a6 {[%clk 0:02:39.5]}
7. Nc3 {[%clk 0:02:51.6]} 7... b5 {[%clk 0:02:35.1]} 8. Kh1 {[%clk 0:02:45.8]}
8... Bb7 {[%clk 0:02:34.3]} 9. Nxc6 {[%clk 0:02:43.8]} 9... Bxc6 {[%clk
0:02:32.4]} 10. Bf3 {[%clk 0:02:37.8]} 10... d6 {[%clk 0:02:28.9]} 11. Re1
{[%clk 0:02:32.3]} 11... Nf6 {[%clk 0:02:25.2]} 12. Nd5 {[%clk 0:02:32.3]} 12...
Be7 {[%clk 0:02:09.8]} 13. Nxc7+ {[%clk 0:02:31.7]} 13... Kd7 {[%clk 0:01:55.2]}
14. Nxa8 {[%clk 0:02:32.6]} 14... Rxa8 {[%clk 0:01:55.3]} 15. e5 {[%clk
0:02:32.5]} 15... Bxf3 {[%clk 0:01:55.6]} 16. Qxf3 {[%clk 0:02:30.3]} 16... Nd5
{[%clk 0:01:56.4]} 17. exd6 {[%clk 0:02:28.7]} 17... Bf6 {[%clk 0:01:52.1]} 18.
a4 {[%clk 0:02:24.3]} 18... b4 {[%clk 0:01:50.9]} 19. a5 {[%clk 0:02:18.7]}
19... Rc8 {[%clk 0:01:50.9]} 20. Qd3 {[%clk 0:02:17.4]} 20... Rc6 {[%clk
0:01:50.1]} 21. Bd2 {[%clk 0:02:06.1]} 21... Rxd6 {[%clk 0:01:43.3]} 22. Qxh7
{[%clk 0:02:01.4]} 22... Rc6 {[%clk 0:01:40.8]} 23. Rad1 {[%clk 0:01:57.4]}
23... Kc7 {[%clk 0:01:37.7]} 24. Qg8 {[%clk 0:01:54.9]} 24... Kb7 {[%clk
0:01:36.3]} 25. Qxf7+ {[%clk 0:01:54.2]} 25... Nc7 {[%clk 0:01:36.3]} 26. Bxb4
{[%clk 0:01:51.5]} 26... Bxb2 {[%clk 0:01:33.6]} 27. Bd6 {[%clk 0:01:47.5]}
27... Rxc2 {[%clk 0:01:31.1]} 28. Bxc7 {[%clk 0:01:45.1]} 28... Rxc7 {[%clk
0:01:32]} 29. Rd7 {[%clk 0:01:45.6]} 29... Rxd7 {[%clk 0:01:32.5]} 30. Qxd7+
{[%clk 0:01:46.5]} 30... Ka8 {[%clk 0:01:33.3]} 31. Rxe6 {[%clk 0:01:45]} 31...
Be5 {[%clk 0:01:34]} 32. Re8+ {[%clk 0:01:45.1]} 32... Bb8 {[%clk 0:01:34.9]}
33. Qc7 {[%clk 0:01:42.5]} 33... g5 {[%clk 0:01:33.8]} 34. Rxb8# {[%clk
0:01:43.4]} 1-0

[Event "Early-Titled-Tuesday-Blitz-February-06-2024"]
[Site "Chess.com"]
[Date "2024.02.06"]
[Round "9"]
[White "Der_Balak_3Halak"]
[Black "alexrustemov"]
[Result "0-1"]
[WhiteElo "2506"]
[BlackElo "2738"]
[TimeControl "180+1"]
[EndTime "9:41:29 PST"]
[Termination "alexrustemov won by resignation"]

1. e4 {[%clk 0:02:56.2]} 1... e6 {[%clk 0:02:59.8]} 2. d4 {[%clk 0:02:55.8]}
2... d5 {[%clk 0:03:00.2]} 3. exd5 {[%clk 0:02:56.7]} 3... exd5 {[%clk
0:02:59.8]} 4. Bd3 {[%clk 0:02:57.3]} 4... Nc6 {[%clk 0:02:59.1]} 5. c3 {[%clk
0:02:54.8]} 5... Bd6 {[%clk 0:02:59.4]} 6. Ne2 {[%clk 0:02:53.9]} 6... Qh4
{[%clk 0:02:58.6]} 7. Nd2 {[%clk 0:02:48.2]} 7... Bg4 {[%clk 0:02:57.9]} 8. g3
{[%clk 0:02:42.6]} 8... Qh3 {[%clk 0:02:52.2]} 9. Nf1 {[%clk 0:02:31.4]} 9...
Qg2 {[%clk 0:02:43.2]} 10. Rg1 {[%clk 0:02:29.1]} 10... Qxg1 {[%clk 0:02:40.8]}
11. Nxg1 {[%clk 0:02:28.1]} 11... Bxd1 {[%clk 0:02:41.4]} 12. Kxd1 {[%clk
0:02:29]} 12... Nf6 {[%clk 0:02:37.3]} 13. Ne2 {[%clk 0:02:27.8]} 13... O-O
{[%clk 0:02:36.8]} 14. Ne3 {[%clk 0:02:24.5]} 14... Rfe8 {[%clk 0:02:32.9]} 15.
Kc2 {[%clk 0:02:22.6]} 15... Ne7 {[%clk 0:02:26.3]} 16. Bd2 {[%clk 0:02:17.3]}
16... c6 {[%clk 0:02:25.5]} 17. g4 {[%clk 0:02:08]} 17... Ng6 {[%clk 0:02:17.8]}
18. Nf5 {[%clk 0:01:37.1]} 18... Bxh2 {[%clk 0:02:09.8]} 19. f4 {[%clk
0:01:31.2]} 19... Nxg4 {[%clk 0:02:07.7]} 20. Rh1 {[%clk 0:01:02]} 20... h5
{[%clk 0:02:06.5]} 21. Nd6 {[%clk 0:00:52.1]} 21... Re7 {[%clk 0:01:59.7]} 22.
Bf5 {[%clk 0:00:52.1]} 22... Rxe2 {[%clk 0:01:56.7]} 0-1

[Event "Early-Titled-Tuesday-Blitz-February-06-2024"]
[Site "Chess.com"]
[Date "2024.02.06"]
[Round "9"]
[White "nihalsarin"]
[Black "Elsa167"]
[Result "1-0"]
[WhiteElo "3114"]
[BlackElo "2875"]
[TimeControl "180+1"]
[EndTime "9:41:33 PST"]
[Termination "nihalsarin won by resignation"]

1. a3 {[%clk 0:02:55.1]} 1... e5 {[%clk 0:02:57.6]} 2. c4 {[%clk 0:02:54.7]}
2... g6 {[%clk 0:02:51.4]} 3. b4 {[%clk 0:02:53.7]} 3... Bg7 {[%clk 0:02:51.8]}
4. Bb2 {[%clk 0:02:54.6]} 4... d6 {[%clk 0:02:50.1]} 5. g3 {[%clk 0:02:55]} 5...
f5 {[%clk 0:02:49.9]} 6. Bg2 {[%clk 0:02:55.6]} 6... Nf6 {[%clk 0:02:50.5]} 7.
d3 {[%clk 0:02:56.2]} 7... O-O {[%clk 0:02:50.8]} 8. Nf3 {[%clk 0:02:56.3]} 8...
Nc6 {[%clk 0:02:48.2]} 9. O-O {[%clk 0:02:56.6]} 9... h6 {[%clk 0:02:48.4]} 10.
Nc3 {[%clk 0:02:55.9]} 10... g5 {[%clk 0:02:48.4]} 11. Nd2 {[%clk 0:02:56.7]}
11... Ne7 {[%clk 0:02:47.5]} 12. e3 {[%clk 0:02:56.5]} 12... Ng6 {[%clk
0:02:41.9]} 13. Rc1 {[%clk 0:02:55.3]} 13... c6 {[%clk 0:02:39.4]} 14. b5 {[%clk
0:02:55.1]} 14... Bd7 {[%clk 0:02:31.5]} 15. a4 {[%clk 0:02:55.7]} 15... g4
{[%clk 0:02:23.6]} 16. Ba3 {[%clk 0:02:56.3]} 16... Qe7 {[%clk 0:02:18]} 17. a5
{[%clk 0:02:56.4]} 17... a6 {[%clk 0:02:18.2]} 18. bxc6 {[%clk 0:02:56.5]} 18...
bxc6 {[%clk 0:02:07.5]} 19. Rb1 {[%clk 0:02:57]} 19... Rab8 {[%clk 0:01:44.9]}
20. Rb6 {[%clk 0:02:56.4]} 20... Rxb6 {[%clk 0:01:34.7]} 21. axb6 {[%clk
0:02:57.3]} 21... Rb8 {[%clk 0:01:35.4]} 22. Qb3 {[%clk 0:02:55.9]} 22... h5
{[%clk 0:01:34.1]} 23. c5+ {[%clk 0:02:45.5]} 23... d5 {[%clk 0:01:34.1]} 24. e4
{[%clk 0:02:46.2]} 24... f4 {[%clk 0:01:23.9]} 25. exd5 {[%clk 0:02:45.2]} 25...
f3 {[%clk 0:01:23.8]} 26. Nxf3 {[%clk 0:02:16.8]} 26... gxf3 {[%clk 0:01:22]}
27. Bxf3 {[%clk 0:02:17.7]} 27... cxd5 {[%clk 0:01:18.6]} 28. c6 {[%clk
0:02:14.6]} 28... Qd8 {[%clk 0:01:08.5]} 29. Nxd5 {[%clk 0:02:04.7]} 29... Be6
{[%clk 0:01:06.1]} 30. c7 {[%clk 0:02:04.6]} 30... Qxc7 {[%clk 0:01:05.3]} 31.
Nxf6+ {[%clk 0:02:04.5]} 1-0

[Event "Early-Titled-Tuesday-Blitz-February-06-2024"]
[Site "Chess.com"]
[Date "2024.02.06"]
[Round "9"]
[White "JeFumeDesClopes"]
[Black "bogcsab"]
[Result "0-1"]
[WhiteElo "2585"]
[BlackElo "2508"]
[TimeControl "180+1"]
[EndTime "9:41:35 PST"]
[Termination "bogcsab won by resignation"]

1. Nf3 {[%clk 0:03:00.9]} 1... d6 {[%clk 0:03:00.1]} 2. d4 {[%clk 0:02:58.7]}
2... Nf6 {[%clk 0:03:00.1]} 3. g3 {[%clk 0:02:58.1]} 3... g6 {[%clk 0:03:00.5]}
4. Bg2 {[%clk 0:02:58.7]} 4... Bg7 {[%clk 0:03:01.2]} 5. O-O {[%clk 0:02:59.4]}
5... O-O {[%clk 0:03:01.8]} 6. b3 {[%clk 0:02:59.9]} 6... Nbd7 {[%clk
0:03:02.4]} 7. Bb2 {[%clk 0:03:00.2]} 7... Qe8 {[%clk 0:03:00]} 8. c4 {[%clk
0:03:00]} 8... e5 {[%clk 0:03:00]} 9. dxe5 {[%clk 0:03:00.6]} 9... dxe5 {[%clk
0:03:00]} 10. Nc3 {[%clk 0:03:01.2]} 10... c6 {[%clk 0:02:59.3]} 11. Ng5 {[%clk
0:03:00]} 11... Qe7 {[%clk 0:02:58.7]} 12. Nge4 {[%clk 0:02:57.2]} 12... Nxe4
{[%clk 0:02:58]} 13. Nxe4 {[%clk 0:02:58.1]} 13... f5 {[%clk 0:02:57.9]} 14. Nd6
{[%clk 0:02:39.3]} 14... Nc5 {[%clk 0:02:47]} 15. Ba3 {[%clk 0:02:35.3]} 15...
b6 {[%clk 0:02:46.8]} 16. Bxc6 {[%clk 0:02:28.5]} 16... Rb8 {[%clk 0:02:40.5]}
17. Nxc8 {[%clk 0:02:27]} 17... Rbxc8 {[%clk 0:02:39.9]} 18. Bd5+ {[%clk
0:02:25.2]} 18... Kh8 {[%clk 0:02:39.3]} 19. Qc2 {[%clk 0:02:20.3]} 19... f4
{[%clk 0:02:31.8]} 20. Rad1 {[%clk 0:02:18.8]} 20... g5 {[%clk 0:02:27]} 21. Bb2
{[%clk 0:02:08.5]} 21... g4 {[%clk 0:02:19.5]} 22. Be4 {[%clk 0:01:53.5]} 22...
f3 {[%clk 0:02:15.3]} 23. exf3 {[%clk 0:01:48.5]} 23... gxf3 {[%clk 0:02:14.6]}
24. Bxh7 {[%clk 0:01:22.6]} 24... Qe6 {[%clk 0:02:08.3]} 25. Kh1 {[%clk
0:01:00.8]} 25... Qh3 {[%clk 0:02:07]} 26. Rg1 {[%clk 0:01:01.4]} 26... Qxh7
{[%clk 0:02:02.6]} 27. Qxh7+ {[%clk 0:00:59.5]} 27... Kxh7 {[%clk 0:02:02.8]}
28. Rd5 {[%clk 0:00:57.7]} 28... Rcd8 {[%clk 0:01:59.1]} 0-1

[Event "Early-Titled-Tuesday-Blitz-February-06-2024"]
[Site "Chess.com"]
[Date "2024.02.06"]
[Round "9"]
[White "NovakRatko"]
[Black "cristiano78"]
[Result "0-1"]
[WhiteElo "2400"]
[BlackElo "2292"]
[TimeControl "180+1"]
[EndTime "9:41:35 PST"]
[Termination "cristiano78 won by resignation"]

1. d4 {[%clk 0:02:40]} 1... Nf6 {[%clk 0:02:59.8]} 2. c4 {[%clk 0:02:40.5]} 2...
g6 {[%clk 0:03:00]} 3. Nc3 {[%clk 0:02:40]} 3... Bg7 {[%clk 0:03:00.2]} 4. e4
{[%clk 0:02:40.1]} 4... d6 {[%clk 0:03:00.8]} 5. f3 {[%clk 0:02:40.3]} 5... O-O
{[%clk 0:03:01]} 6. Be3 {[%clk 0:02:40.7]} 6... Nc6 {[%clk 0:02:58.8]} 7. Qd2
{[%clk 0:02:39.4]} 7... a6 {[%clk 0:02:58.8]} 8. Nge2 {[%clk 0:02:39.3]} 8...
Rb8 {[%clk 0:02:58.1]} 9. g4 {[%clk 0:02:39.1]} 9... b5 {[%clk 0:02:56.7]} 10.
Ng3 {[%clk 0:02:34.6]} 10... e5 {[%clk 0:02:55.4]} 11. d5 {[%clk 0:02:30.7]}
11... Nd4 {[%clk 0:02:55.2]} 12. Kf2 {[%clk 0:01:56.3]} 12... bxc4 {[%clk
0:02:15.5]} 13. Bxc4 {[%clk 0:01:53.6]} 13... Bxg4 {[%clk 0:02:07.1]} 14. fxg4
{[%clk 0:01:52.5]} 14... Nxg4+ {[%clk 0:02:01.2]} 15. Kf1 {[%clk 0:01:31.3]}
15... Rxb2 {[%clk 0:01:57.1]} 16. Qxb2 {[%clk 0:01:23.3]} 16... Nxe3+ {[%clk
0:01:55.8]} 17. Ke1 {[%clk 0:01:16.5]} 17... Nxc4 {[%clk 0:01:54.4]} 18. Qe2
{[%clk 0:01:09.3]} 18... Nb6 {[%clk 0:01:44.5]} 19. Kf2 {[%clk 0:01:04.2]} 19...
Nxe2 {[%clk 0:01:44.4]} 0-1

[Event "Early-Titled-Tuesday-Blitz-February-06-2024"]
[Site "Chess.com"]
[Date "2024.02.06"]
[Round "9"]
[White "MatthewG-p4p"]
[Black "Gennady_Kozlov"]
[Result "1-0"]
[WhiteElo "2828"]
[BlackElo "2711"]
[TimeControl "180+1"]
[EndTime "9:41:53 PST"]
[Termination "MatthewG-p4p won by resignation"]

1. f4 {[%clk 0:02:55.8]} 1... d5 {[%clk 0:02:58.4]} 2. Nf3 {[%clk 0:02:55]} 2...
c6 {[%clk 0:02:58]} 3. g3 {[%clk 0:02:55.3]} 3... g6 {[%clk 0:02:58.3]} 4. Bg2
{[%clk 0:02:54.9]} 4... Bg7 {[%clk 0:02:58.9]} 5. O-O {[%clk 0:02:55.4]} 5...
Bg4 {[%clk 0:02:57.8]} 6. Nc3 {[%clk 0:02:55.4]} 6... Qc8 {[%clk 0:02:57.4]} 7.
d3 {[%clk 0:02:53.5]} 7... Bh3 {[%clk 0:02:57.3]} 8. e4 {[%clk 0:02:54.3]} 8...
Bxg2 {[%clk 0:02:57.2]} 9. Kxg2 {[%clk 0:02:55.2]} 9... e6 {[%clk 0:02:56.9]}
10. f5 {[%clk 0:02:54.2]} 10... gxf5 {[%clk 0:02:55.5]} 11. exf5 {[%clk
0:02:53.6]} 11... Ne7 {[%clk 0:02:56.4]} 12. Ng5 {[%clk 0:02:44.2]} 12... Nxf5
{[%clk 0:02:48.7]} 13. Qh5 {[%clk 0:01:45.7]} 13... Qd7 {[%clk 0:02:40.1]} 14.
Bd2 {[%clk 0:01:45.9]} 14... Na6 {[%clk 0:02:38.8]} 15. Nxe6 {[%clk 0:01:33.8]}
15... Qxe6 {[%clk 0:02:34.9]} 16. Rae1 {[%clk 0:01:33.6]} 16... O-O-O {[%clk
0:02:33.1]} 17. Rxe6 {[%clk 0:01:24]} 17... fxe6 {[%clk 0:02:34]} 18. Qf7 {[%clk
0:01:23.9]} 18... Nc7 {[%clk 0:02:21.3]} 19. Rxf5 {[%clk 0:01:15.9]} 19... Bxc3
{[%clk 0:02:18.3]} 20. Bxc3 {[%clk 0:01:11.4]} 20... exf5 {[%clk 0:02:19.2]} 21.
Qxf5+ {[%clk 0:01:09.8]} 21... Kb8 {[%clk 0:02:18.2]} 22. Bxh8 {[%clk
0:01:10.3]} 22... Rxh8 {[%clk 0:02:17.7]} 23. Qf6 {[%clk 0:01:09.4]} 23... Re8
{[%clk 0:02:17.4]} 24. Qf7 {[%clk 0:01:09.2]} 24... b5 {[%clk 0:02:16.2]} 25.
Kf2 {[%clk 0:01:04.4]} 25... h6 {[%clk 0:02:14.8]} 26. h4 {[%clk 0:01:00.2]}
26... d4 {[%clk 0:02:01.1]} 27. g4 {[%clk 0:00:59]} 27... Re3 {[%clk 0:02:00.6]}
28. g5 {[%clk 0:00:56]} 28... hxg5 {[%clk 0:02:01.5]} 29. hxg5 {[%clk
0:00:56.3]} 29... Ne6 {[%clk 0:02:00.2]} 30. g6 {[%clk 0:00:50.4]} 30... Ng5
{[%clk 0:02:00.2]} 31. Qf4+ {[%clk 0:00:46.6]} 1-0

[Event "Early-Titled-Tuesday-Blitz-February-06-2024"]
[Site "Chess.com"]
[Date "2024.02.06"]
[Round "9"]
[White "JohnWhite1952"]
[Black "threemind"]
[Result "1-0"]
[WhiteElo "1974"]
[BlackElo "2113"]
[TimeControl "180+1"]
[EndTime "9:42:09 PST"]
[Termination "JohnWhite1952 won by resignation"]

1. e4 {[%clk 0:02:59.1]} 1... a6 {[%clk 0:02:58.4]} 2. d4 {[%clk 0:02:57.3]}
2... b5 {[%clk 0:02:59.3]} 3. Bd3 {[%clk 0:02:55.1]} 3... Bb7 {[%clk 0:03:00.2]}
4. Nf3 {[%clk 0:02:51.5]} 4... Nf6 {[%clk 0:02:57.3]} 5. Qe2 {[%clk 0:02:50]}
5... e6 {[%clk 0:02:57]} 6. Nbd2 {[%clk 0:02:48.3]} 6... Be7 {[%clk 0:02:57.1]}
7. O-O {[%clk 0:02:47.3]} 7... d5 {[%clk 0:02:57.7]} 8. Re1 {[%clk 0:02:34.2]}
8... c5 {[%clk 0:02:56.3]} 9. exd5 {[%clk 0:02:29.6]} 9... Nxd5 {[%clk
0:02:57.2]} 10. Ne4 {[%clk 0:02:11.2]} 10... cxd4 {[%clk 0:02:53.4]} 11. Nxd4
{[%clk 0:02:03.7]} 11... Nc6 {[%clk 0:02:53.7]} 12. Nxc6 {[%clk 0:01:59.9]}
12... Bxc6 {[%clk 0:02:54.6]} 13. c3 {[%clk 0:01:50.9]} 13... Nf6 {[%clk
0:02:54.5]} 14. Nxf6+ {[%clk 0:01:41.6]} 14... Bxf6 {[%clk 0:02:55.4]} 15. Be4
{[%clk 0:01:39.3]} 15... Bxe4 {[%clk 0:02:53]} 16. Qxe4 {[%clk 0:01:38.3]} 16...
O-O {[%clk 0:02:53.9]} 17. Bf4 {[%clk 0:01:36.6]} 17... Qe7 {[%clk 0:02:50.3]}
18. Rad1 {[%clk 0:01:33.7]} 18... Rad8 {[%clk 0:02:50.9]} 19. Qc6 {[%clk
0:01:19.4]} 19... Rxd1 {[%clk 0:02:46.8]} 20. Rxd1 {[%clk 0:01:18.2]} 20... Rd8
{[%clk 0:02:47.5]} 21. Rxd8+ {[%clk 0:01:10.5]} 21... Qxd8 {[%clk 0:02:48.4]}
22. Qd6 {[%clk 0:01:09.4]} 22... Qxd6 {[%clk 0:02:47.8]} 23. Bxd6 {[%clk
0:01:08.7]} 23... a5 {[%clk 0:02:48.4]} 24. Kf1 {[%clk 0:01:04.2]} 24... b4
{[%clk 0:02:42.6]} 25. cxb4 {[%clk 0:01:02.1]} 25... axb4 {[%clk 0:02:43.1]} 26.
Bxb4 {[%clk 0:00:55.9]} 26... Bxb2 {[%clk 0:02:42.9]} 27. a4 {[%clk 0:00:54.7]}
27... Bd4 {[%clk 0:02:43.8]} 28. Ke2 {[%clk 0:00:52]} 28... f5 {[%clk
0:02:44.7]} 29. f3 {[%clk 0:00:51]} 29... Kf7 {[%clk 0:02:44.8]} 30. Kd3 {[%clk
0:00:50]} 30... Bg1 {[%clk 0:02:45.4]} 31. h3 {[%clk 0:00:48.9]} 31... e5 {[%clk
0:02:46]} 32. Kc4 {[%clk 0:00:40.8]} 32... e4 {[%clk 0:02:43.4]} 33. fxe4 {[%clk
0:00:35.9]} 33... fxe4 {[%clk 0:02:43.5]} 34. Kc3 {[%clk 0:00:31.8]} 34... Ke6
{[%clk 0:02:41.7]} 35. Kd2 {[%clk 0:00:30.6]} 35... Kd5 {[%clk 0:02:41.9]} 36.
Ke2 {[%clk 0:00:29.4]} 36... Kc4 {[%clk 0:02:40.1]} 37. Bd2 {[%clk 0:00:28]}
37... Kb3 {[%clk 0:02:35.9]} 38. a5 {[%clk 0:00:27.4]} 38... Kc4 {[%clk
0:02:34.2]} 39. Be3 {[%clk 0:00:27.1]} 39... Bh2 {[%clk 0:02:33.3]} 40. a6
{[%clk 0:00:24.6]} 1-0

[Event "Early-Titled-Tuesday-Blitz-February-06-2024"]
[Site "Chess.com"]
[Date "2024.02.06"]
[Round "9"]
[White "JiiHart"]
[Black "FMVolodymyrSakun"]
[Result "0-1"]
[WhiteElo "2146"]
[BlackElo "2531"]
[TimeControl "180+1"]
[EndTime "9:42:16 PST"]
[Termination "FMVolodymyrSakun won by resignation"]

1. e4 {[%clk 0:02:58.6]} 1... c5 {[%clk 0:03:00.3]} 2. c3 {[%clk 0:02:58.4]}
2... Nf6 {[%clk 0:02:59.6]} 3. e5 {[%clk 0:02:58.6]} 3... Nd5 {[%clk 0:02:59.9]}
4. d4 {[%clk 0:02:58.9]} 4... cxd4 {[%clk 0:03:00.8]} 5. Nf3 {[%clk 0:02:58.9]}
5... Nc6 {[%clk 0:03:00]} 6. cxd4 {[%clk 0:02:59]} 6... d6 {[%clk 0:03:00.3]} 7.
Nc3 {[%clk 0:02:57.2]} 7... dxe5 {[%clk 0:02:57.8]} 8. dxe5 {[%clk 0:02:55.7]}
8... Nxc3 {[%clk 0:02:58]} 9. Qxd8+ {[%clk 0:02:55.8]} 9... Nxd8 {[%clk
0:02:58.9]} 10. bxc3 {[%clk 0:02:56.3]} 10... Nc6 {[%clk 0:02:58.3]} 11. Be3
{[%clk 0:02:50.5]} 11... a6 {[%clk 0:02:38.1]} 12. Be2 {[%clk 0:02:47.9]} 12...
Bg4 {[%clk 0:02:36.9]} 13. a4 {[%clk 0:02:43.2]} 13... O-O-O {[%clk 0:02:32.9]}
14. Rb1 {[%clk 0:02:31.8]} 14... Bf5 {[%clk 0:02:23.1]} 15. Rb2 {[%clk
0:02:09.2]} 15... e6 {[%clk 0:02:23.1]} 16. O-O {[%clk 0:02:08.6]} 16... Bd3
{[%clk 0:02:16.7]} 17. Rd1 {[%clk 0:01:59.6]} 17... Ba3 {[%clk 0:02:06.3]} 18.
Ra2 {[%clk 0:01:34.3]} 18... Bxe2 {[%clk 0:02:01.7]} 19. Rxd8+ {[%clk
0:01:32.8]} 19... Rxd8 {[%clk 0:02:02.6]} 20. Rxe2 {[%clk 0:01:32.6]} 20... Rd1+
{[%clk 0:02:01.9]} 21. Re1 {[%clk 0:01:32.7]} 21... Rxe1+ {[%clk 0:02:02.1]} 22.
Nxe1 {[%clk 0:01:32.5]} 22... Nxe5 {[%clk 0:02:02.4]} 23. Bd4 {[%clk 0:01:31.9]}
23... f6 {[%clk 0:02:01.8]} 24. Bxe5 {[%clk 0:01:26.2]} 24... fxe5 {[%clk
0:02:02.7]} 25. Nd3 {[%clk 0:01:26.3]} 25... e4 {[%clk 0:01:54]} 26. Nf4 {[%clk
0:01:23.1]} 26... Kd7 {[%clk 0:01:54]} 27. Kf1 {[%clk 0:01:22.4]} 27... Bd6
{[%clk 0:01:50.8]} 28. Nh5 {[%clk 0:01:17.7]} 28... Be5 {[%clk 0:01:51.1]} 29.
c4 {[%clk 0:01:12.4]} 29... g6 {[%clk 0:01:46.1]} 30. Ng3 {[%clk 0:01:10.2]}
30... Bxg3 {[%clk 0:01:45.6]} 31. hxg3 {[%clk 0:01:10.6]} 31... Kd6 {[%clk
0:01:46.1]} 32. Ke2 {[%clk 0:01:10.6]} 32... Kc5 {[%clk 0:01:45.5]} 33. Ke3
{[%clk 0:01:11]} 33... Kxc4 {[%clk 0:01:46]} 34. Kxe4 {[%clk 0:01:11.6]} 34...
b5 {[%clk 0:01:46.5]} 35. axb5 {[%clk 0:01:10.9]} 35... axb5 {[%clk 0:01:47.4]}
36. Ke5 {[%clk 0:01:08.2]} 36... b4 {[%clk 0:01:48.3]} 37. Kxe6 {[%clk
0:01:08.6]} 37... b3 {[%clk 0:01:48.9]} 38. f4 {[%clk 0:01:09.1]} 38... b2
{[%clk 0:01:49.5]} 39. g4 {[%clk 0:01:09.7]} 39... b1=Q {[%clk 0:01:49.8]} 40.
f5 {[%clk 0:01:10.3]} 40... Qe4+ {[%clk 0:01:49.8]} 41. Kf6 {[%clk 0:01:09.4]}
41... Qxg4 {[%clk 0:01:49.9]} 42. fxg6 {[%clk 0:01:08]} 42... Qxg6+ {[%clk
0:01:50]} 43. Ke5 {[%clk 0:01:07.5]} 43... Qxg2 {[%clk 0:01:50.2]} 44. Kf6
{[%clk 0:01:06.5]} 44... h5 {[%clk 0:01:51.1]} 0-1

[Event "Early-Titled-Tuesday-Blitz-February-06-2024"]
[Site "Chess.com"]
[Date "2024.02.06"]
[Round "9"]
[White "NastyaHn"]
[Black "marsofsilva"]
[Result "1-0"]
[WhiteElo "2373"]
[BlackElo "2087"]
[TimeControl "180+1"]
[EndTime "9:42:33 PST"]
[Termination "NastyaHn won by resignation"]

1. Nc3 {[%clk 0:03:00.9]} 1... d5 {[%clk 0:02:58.4]} 2. e4 {[%clk 0:02:59.2]}
2... c6 {[%clk 0:02:56.9]} 3. d4 {[%clk 0:02:59.1]} 3... dxe4 {[%clk 0:02:56.7]}
4. Nxe4 {[%clk 0:02:59.8]} 4... Nf6 {[%clk 0:02:57.3]} 5. Nxf6+ {[%clk
0:02:59.8]} 5... exf6 {[%clk 0:02:57.3]} 6. Be3 {[%clk 0:03:00.5]} 6... Bd6
{[%clk 0:02:57.2]} 7. Bd3 {[%clk 0:03:00.8]} 7... O-O {[%clk 0:02:55.9]} 8. Ne2
{[%clk 0:03:01.2]} 8... h5 {[%clk 0:02:52.7]} 9. c4 {[%clk 0:03:01.3]} 9... Re8
{[%clk 0:02:49.9]} 10. Qc2 {[%clk 0:03:01.4]} 10... Nd7 {[%clk 0:02:46.4]} 11.
O-O-O {[%clk 0:03:01.3]} 11... Nf8 {[%clk 0:02:45.1]} 12. Kb1 {[%clk 0:02:53.8]}
12... Be6 {[%clk 0:02:36.9]} 13. Nc3 {[%clk 0:02:49.3]} 13... Bb4 {[%clk
0:02:35.7]} 14. d5 {[%clk 0:02:42.5]} 14... cxd5 {[%clk 0:02:23.8]} 15. cxd5
{[%clk 0:02:42.4]} 15... Bd7 {[%clk 0:02:21.1]} 16. Qb3 {[%clk 0:02:36.4]} 16...
a5 {[%clk 0:02:17.4]} 17. Na4 {[%clk 0:02:20.3]} 17... b5 {[%clk 0:02:09.1]} 18.
Nb6 {[%clk 0:02:18.4]} 18... Rb8 {[%clk 0:02:05.2]} 19. Nxd7 {[%clk 0:02:18.3]}
19... Qxd7 {[%clk 0:02:06.1]} 20. Bf4 {[%clk 0:01:58.3]} 20... Bd6 {[%clk
0:02:04.4]} 21. Bxd6 {[%clk 0:01:57.6]} 21... Qxd6 {[%clk 0:02:04.6]} 22. Bxb5
{[%clk 0:01:44.8]} 22... Re4 {[%clk 0:01:57]} 23. a4 {[%clk 0:01:44.1]} 23...
Rb4 {[%clk 0:01:56.5]} 24. Qc3 {[%clk 0:01:40.5]} 24... Nd7 {[%clk 0:01:53.6]}
25. Rhe1 {[%clk 0:01:30.7]} 25... Nc5 {[%clk 0:01:47.5]} 26. Rd4 {[%clk
0:01:12.9]} 26... Rb3 {[%clk 0:01:22.7]} 27. Qc2 {[%clk 0:01:08]} 27... R3xb5
{[%clk 0:00:57.2]} 28. axb5 {[%clk 0:01:05.9]} 28... Rxb5 {[%clk 0:00:57.4]} 29.
Re8+ {[%clk 0:01:04.2]} 1-0

[Event "Early-Titled-Tuesday-Blitz-February-06-2024"]
[Site "Chess.com"]
[Date "2024.02.06"]
[Round "9"]
[White "Muslim_player_05"]
[Black "FMStan15"]
[Result "1-0"]
[WhiteElo "2477"]
[BlackElo "2044"]
[TimeControl "180+1"]
[EndTime "9:42:51 PST"]
[Termination "Muslim_player_05 won by resignation"]

1. d4 {[%clk 0:03:00.9]} 1... Nf6 {[%clk 0:02:59.6]} 2. c4 {[%clk 0:03:01.3]}
2... g6 {[%clk 0:03:00]} 3. Nc3 {[%clk 0:03:01.5]} 3... Bg7 {[%clk 0:03:00.2]}
4. e4 {[%clk 0:03:00.9]} 4... d6 {[%clk 0:03:00.7]} 5. f3 {[%clk 0:03:00.4]}
5... O-O {[%clk 0:03:00.6]} 6. Be3 {[%clk 0:03:00.5]} 6... e5 {[%clk 0:03:00.9]}
7. Nge2 {[%clk 0:02:58.7]} 7... c6 {[%clk 0:02:58.8]} 8. Qd2 {[%clk 0:02:57.9]}
8... a5 {[%clk 0:02:58.5]} 9. h4 {[%clk 0:02:36]} 9... h5 {[%clk 0:02:45.3]} 10.
O-O-O {[%clk 0:02:35.5]} 10... Nbd7 {[%clk 0:02:35.2]} 11. Kb1 {[%clk
0:02:29.5]} 11... Qe7 {[%clk 0:02:34.3]} 12. d5 {[%clk 0:02:23.8]} 12... cxd5
{[%clk 0:02:31.9]} 13. cxd5 {[%clk 0:02:11.9]} 13... Nc5 {[%clk 0:02:09.7]} 14.
Nc1 {[%clk 0:02:08.8]} 14... b6 {[%clk 0:02:08.9]} 15. Nd3 {[%clk 0:01:39]}
15... Ba6 {[%clk 0:02:07]} 16. Nf2 {[%clk 0:01:28.3]} 16... Bxf1 {[%clk
0:02:05.9]} 17. Rhxf1 {[%clk 0:01:29.2]} 17... Rab8 {[%clk 0:01:56.6]} 18. g4
{[%clk 0:01:22.2]} 18... b5 {[%clk 0:01:54.2]} 19. Bg5 {[%clk 0:01:10.7]} 19...
b4 {[%clk 0:01:52.6]} 20. Ne2 {[%clk 0:01:09.9]} 20... b3 {[%clk 0:01:48]} 21.
a3 {[%clk 0:01:04]} 21... Ncd7 {[%clk 0:01:27.6]} 22. gxh5 {[%clk 0:01:03.6]}
22... gxh5 {[%clk 0:01:26.9]} 23. Rg1 {[%clk 0:01:03.5]} 23... Kh7 {[%clk
0:01:24.6]} 24. Ng3 {[%clk 0:00:59.7]} 24... Qe8 {[%clk 0:01:18.4]} 25. Nf5
{[%clk 0:00:59.5]} 25... Rg8 {[%clk 0:01:00.4]} 26. Bxf6 {[%clk 0:00:57.4]}
26... Nxf6 {[%clk 0:00:55.4]} 27. Rxg7+ {[%clk 0:00:56.7]} 1-0